bitfinex/quotes_ETHUSD_20250726
["timestamp","ask_amount","ask_price","bid_price","bid_amount"]
[1753496132880,0.7746,3721.6,3721.3,2.68719115]
[1753496133108,0.1344,3721.5,3721.4,5.13616074]
[1753496133685,0.1344,3721.5,3721.4,2.449]
[1753496134313,0.7746,3721.6,3721.4,2.9375]
[1753496134496,0.909,3721.6,3721.4,2.9375]
[1753496134695,0.909,3721.6,3721.4,2.449]
[1753496134900,0.1344,3721.6,3721.4,3.3763]
[1753496135297,0.1344,3721.6,3721.4,2.449]
[1753496135613,0.1344,3721.6,3721.5,2.449]
[1753496136944,0.7913,3722.3,3721.5,8.75691975]
[1753496137084,0.7134,3722.2,3721.8,3.0]
[1753496137285,0.7913,3722.0,3720.7,0.7719]
[1753496137487,0.7913,3721.8,3721.4,3.0]
[1753496137693,0.7989,3721.7,3721.5,2.451]
[1753496137920,0.4639,3721.6,3721.5,2.451]
[1753496138314,0.7913,3721.8,3721.5,2.451]
[1753496138510,0.7913,3721.8,3721.5,5.13807051]
[1753496138704,0.4639,3721.7,3721.5,5.13807051]
[1753496138903,0.4639,3721.7,3721.6,2.451]
[1753496139699,0.7913,3721.8,3721.6,2.451]
[1753496140314,0.7913,3721.8,3721.6,5.13801272]
[1753496140530,0.8324868,3721.7,3720.7,1.6992]
[1753496140698,1.2259,3721.6,3720.9,3.0]
[1753496140894,0.762,3722.1,3721.2,4.07372479]
[1753496141227,0.4639,3722.0,3721.3,0.9273]
[1753496141431,0.762,3721.9,3721.3,8.14121588]
[1753496141728,3.44894413,3721.7,3721.4,2.454]
[1753496142029,0.8324877,3721.6,3721.4,2.454]
[1753496142231,0.762,3721.5,3720.3,4.57122058]
[1753496142447,0.762,3721.1,3720.4,5.14283326]
[1753496142649,0.49749312,3721.0,3720.4,2.68783326]
[1753496142853,0.49749312,3721.0,3720.5,2.455]
[1753496143056,0.762,3720.9,3720.5,2.455]
[1753496143348,0.762,3721.4,3720.6,3.3833]
[1753496143520,0.762,3721.4,3720.7,0.9273]
[1753496143720,0.762,3721.4,3720.8,2.68759406]
[1753496143931,0.762,3721.4,3720.9,0.9273]
[1753496144117,0.762,3721.7,3721.1,3.0]
[1753496144322,0.762,3721.7,3721.2,3.17580517]
[1753496144653,0.762,3721.7,3721.3,2.456]
[1753496145017,0.762,3721.7,3720.9,6.77024079]
[1753496145018,0.4639,3721.6,3721.4,2.456]
[1753496145218,0.0335877,3721.6,3721.4,2.456]
[1753496145419,0.4639,3721.5,3721.4,2.456]
[1753496145650,0.4639,3721.5,3721.4,2.457]
[1753496145821,1.6032,3721.5,3721.4,2.457]
[1753496146650,1.2682,3721.5,3721.4,2.457]
[1753496146814,0.8043,3721.5,3721.1,2.68736398]
[1753496147019,0.8043,3721.5,3721.2,6.07159996]
[1753496147220,0.8043,3721.5,3721.3,0.4885]
[1753496147447,0.1344,3721.3,3721.2,5.14429996]
[1753496148054,0.1344,3721.3,3721.2,6.07159996]
[1753496148717,0.1344,3721.3,3721.1,2.68737639]
[1753496149050,0.8043,3721.5,3721.2,2.456]
[1753496149256,0.1344,3721.3,3721.2,2.456]
[1753496149421,0.1344,3721.3,3721.2,6.07060517]
[1753496151439,0.1344,3721.3,3721.2,5.63180517]
[1753496151841,0.1344,3721.3,3721.2,6.08560517]
[1753496155274,0.1344,3721.3,3721.2,7.34324052]
[1753496155444,0.7568,3721.8,3721.6,2.68694461]
[1753496155647,0.7568,3721.8,3721.7,2.455]
[1753496155870,0.7568,3721.8,3721.5,2.68707072]
[1753496156069,0.1344,3721.7,3721.6,2.455]
[1753496156246,1.2147,3721.8,3721.6,2.455]
[1753496156452,0.1344,3721.7,3721.6,2.455]
[1753496156958,0.5923,3721.7,3721.6,2.454]
[1753496157546,2.82134413,3721.7,3721.6,2.454]
[1753496159191,0.1344,3721.7,3721.6,2.454]
[1753496159891,0.1344,3721.7,3721.2,0.4832]
[1753496160091,3.44368889,3721.8,3721.3,2.456]
[1753496160385,3.44368889,3721.8,3721.3,3.393]
[1753496160590,0.1344,3721.4,3721.3,3.393]
[1753496161356,0.1344,3721.4,3721.3,6.08023295]
[1753496161692,0.1344,3721.4,3721.3,3.392]
[1753496162257,0.1344,3721.4,3721.3,6.07923295]
[1753496162459,0.1344,3721.4,3721.3,3.392]
[1753496163258,0.1344,3721.4,3721.3,6.07923295]
[1753496164095,0.1344,3721.4,3721.3,6.95589284]
[1753496164988,0.1344,3721.4,3721.3,4.50089284]
[1753496165191,0.1344,3721.4,3721.3,6.95589284]
[1753496165609,0.8036,3722.1,3721.9,2.68675579]
[1753496165817,0.8036,3722.1,3721.9,2.455]
[1753496165974,0.1344,3722.0,3721.9,2.455]
[1753496167705,0.1344,3722.0,3721.9,2.9382]
[1753496168013,0.1344,3722.0,3721.9,2.455]
[1753496168318,0.1344,3722.0,3721.9,3.392]
[1753496170104,0.1344,3722.0,3721.9,2.453]
[1753496171317,0.1344,3722.0,3721.9,3.39]
[1753496172831,0.1344,3722.0,3721.9,6.07679975]
[1753496173017,0.1344,3722.0,3721.9,6.95317403]
[1753496173910,0.2495,3722.2,3722.1,2.68665538]
[1753496174123,0.2495,3722.2,3722.1,5.13965538]
[1753496174308,0.3839,3722.2,3722.1,6.07665538]
[1753496175996,0.2495,3722.2,3722.1,6.07665538]
[1753496176340,0.2495,3722.2,3722.1,7.12303832]
[1753496177314,0.2495,3722.2,3722.1,11.2057589]
[1753496178117,0.2495,3722.2,3722.1,14.2057589]
[1753496182233,0.1995,3722.2,3722.1,14.2057589]
[1753496187357,0.1995,3722.2,3722.1,14.2027589]
[1753496187758,0.1995,3722.2,3722.1,8.12910352]
[1753496187928,0.8081,3722.2,3722.1,7.08272058]
[1753496188128,0.3339,3722.2,3722.1,9.53272058]
[1753496188931,0.3339,3722.2,3722.1,13.13807596]
[1753496189127,0.1995,3722.2,3722.1,13.13807596]
[1753496189355,0.1995,3722.2,3722.1,16.63700209]
[1753496189552,0.1995,3722.2,3722.1,12.68868151]
[1753496189861,0.1995,3722.2,3722.1,12.68968151]
[1753496191535,0.1995,3722.2,3722.1,12.13968151]
[1753496192948,0.1995,3722.2,3722.1,12.68968151]
[1753496193143,0.1995,3722.2,3722.1,16.7634063]
[1753496193851,0.1995,3722.2,3722.1,16.7624063]
[1753496195372,0.1995,3722.2,3722.1,13.7624063]
[1753496195542,0.1995,3722.2,3722.1,16.0790063]
[1753496196452,0.1995,3722.2,3722.1,13.6280063]
[1753496196648,0.1995,3722.2,3722.1,16.0790063]
[1753496196845,0.1995,3722.2,3722.1,5.94892613]
[1753496197075,0.1995,3722.2,3722.1,5.451]
[1753496197451,0.1995,3722.2,3722.1,5.68665538]
[1753496197675,0.1995,3722.2,3722.1,8.13765538]
[1753496198042,0.1995,3722.2,3722.1,8.59405538]
[1753496198238,0.1995,3722.2,3722.1,9.05635538]
[1753496198437,0.1995,3722.2,3722.1,10.41164275]
[1753496199340,0.1995,3722.2,3722.1,6.80628737]
[1753496199572,0.1995,3722.2,3722.1,8.13765538]
[1753496199573,0.6737,3722.2,3722.1,8.13765538]
[1753496199751,0.1995,3722.2,3722.1,8.13765538]
[1753496201792,0.1995,3722.2,3722.1,5.451]
[1753496202242,0.1995,3722.2,3722.1,3.0]
[1753496202439,0.1995,3722.2,3722.1,5.45]
[1753496203280,0.1995,3722.2,3722.1,3.0]
[1753496203451,0.1995,3722.2,3722.1,5.45]
[1753496205485,0.1995,3722.2,3722.1,3.0]
[1753496205684,0.1995,3722.2,3722.1,5.449]
[1753496206087,2.68665693,3722.1,3721.4,2.68716074]
[1753496206288,0.1344,3721.6,3721.5,2.68708805]
[1753496206465,0.1344,3721.6,3721.5,8.14308805]
[1753496206649,0.1344,3721.6,3721.5,5.456]
[1753496207388,0.1344,3721.6,3721.5,3.0]
[1753496207590,0.1344,3721.6,3721.5,6.87118235]
[1753496207797,0.1344,3721.6,3721.5,9.55827088]
[1753496208384,0.1344,3721.6,3721.5,6.87118235]
[1753496208586,0.1344,3721.6,3721.5,6.87018235]
[1753496209088,0.1344,3721.6,3721.5,5.455]
[1753496209286,0.1344,3721.6,3721.5,3.0]
[1753496209455,0.1344,3721.6,3721.5,8.14208853]
[1753496209654,0.1344,3721.6,3721.5,5.455]
[1753496210003,0.1344,3721.6,3721.5,8.14208853]
[1753496210208,0.1344,3721.6,3721.5,10.58329596]
[1753496210498,0.1344,3721.6,3721.5,7.89620743]
[1753496210791,0.1344,3721.6,3721.5,7.39980743]
[1753496210999,0.1344,3721.6,3721.5,5.455]
[1753496212356,0.1344,3721.6,3721.5,5.454]
[1753496213216,0.1344,3721.6,3721.5,3.0]
[1753496213515,0.1344,3721.6,3721.5,5.454]
[1753496216677,0.1344,3721.6,3721.5,3.0]
[1753496216877,0.1344,3721.6,3721.5,5.454]
[1753496218730,0.1344,3721.6,3721.5,3.4964]
[1753496219014,0.1344,3721.6,3721.5,5.9494]
[1753496221625,0.1344,3721.6,3721.5,9.08918853]
[1753496221920,0.1344,3721.6,3721.5,10.40547986]
[1753496223620,0.1344,3721.6,3721.5,7.71839133]
[1753496224541,0.1344,3721.6,3721.5,7.71639133]
[1753496224833,0.1344,3721.6,3721.5,4.31629133]
[1753496225001,0.1344,3721.6,3721.5,5.451]
[1753496228006,0.1344,3721.6,3721.5,5.9474]
[1753496228419,0.1344,3721.6,3721.5,5.9464]
[1753496230333,0.1344,3721.6,3721.5,6.3991]
[1753496230534,0.1344,3721.6,3721.5,3.9491]
[1753496230735,0.1344,3721.6,3721.5,6.3991]
[1753496231557,0.1344,3721.6,3721.5,3.9491]
[1753496231766,0.1344,3721.6,3721.5,6.3991]
[1753496231931,0.1344,3721.6,3721.5,6.91840019]
[1753496234572,0.1344,3721.6,3721.5,9.60548872]
[1753496234773,0.1344,3721.6,3721.5,13.67921351]
[1753496234973,0.1344,3721.6,3721.5,14.44351351]
[1753496235543,0.1344,3721.8,3721.7,2.68688402]
[1753496235745,0.1344,3721.8,3721.7,9.84892377]
[1753496235949,0.1344,3721.8,3721.7,10.79802377]
[1753496236788,0.1344,3721.8,3721.7,8.11113975]
[1753496237773,0.1344,3721.8,3721.7,5.66213975]
[1753496237978,0.1344,3721.8,3721.7,8.11113975]
[1753496238375,0.1344,3721.8,3721.7,7.16203975]
[1753496238575,0.1344,3721.8,3721.7,6.3981]
[1753496239777,0.1344,3721.8,3721.7,3.0]
[1753496239982,0.1344,3721.8,3721.7,5.449]
[1753496240954,1.40178589,3721.8,3721.7,5.449]
[1753496241157,1.3682,3721.8,3721.7,3.0]
[1753496241489,1.3682,3721.8,3721.7,2.449]
[1753496241490,1.7032,3721.8,3721.7,2.449]
[1753496241709,4.39007194,3721.8,3721.7,2.449]
[1753496242190,4.39007194,3721.8,3721.1,0.4542]
[1753496242191,2.68697633,3721.7,3721.6,2.449]
[1753496242562,2.82137633,3721.7,3721.6,2.449]
[1753496242903,2.82134413,3721.7,3721.6,2.449]
[1753496243408,0.1344,3721.7,3721.6,2.449]
[1753496244098,0.1344,3721.7,3721.4,3.0]
[1753496244300,2.68694932,3721.7,3721.5,2.449]
[1753496244603,2.68694932,3721.7,3721.6,2.449]
[1753496244966,2.82134932,3721.7,3721.6,2.449]
[1753496249009,0.1344,3721.7,3721.6,2.449]
[1753496254189,0.1344,3721.7,3721.6,2.9032]
[1753496254389,0.1344,3721.7,3721.6,2.449]
[1753496256223,2.82134413,3721.7,3721.6,2.449]
[1753496256601,0.1344,3721.7,3721.6,2.449]
[1753496258625,0.1344,3721.7,3721.6,2.9032]
[1753496259027,0.1344,3721.7,3721.6,2.449]
[1753496259403,0.1344,3721.7,3721.4,0.9]
[1753496259604,3.46069366,3721.8,3721.5,2.9032]
[1753496259925,3.46069366,3721.8,3721.5,3.349]
[1753496260121,0.1344,3721.6,3721.5,3.349]
[1753496260725,2.82146447,3721.6,3721.5,2.449]
[1753496261088,0.1344,3721.6,3721.5,2.449]
[1753496261489,0.1344,3721.6,3721.4,3.0]
[1753496261693,0.1344,3721.6,3721.4,0.9]
[1753496261906,0.1344,3721.6,3721.5,2.449]
[1753496262922,0.1344,3721.6,3721.5,2.9032]
[1753496263756,2.82141633,3721.6,3721.5,2.449]
[1753496264203,0.1344,3721.6,3721.5,2.449]
[1753496265548,0.1344,3721.6,3721.5,2.9032]
[1753496265845,0.1344,3721.6,3721.5,0.4542]
[1753496266048,2.82141633,3721.6,3721.5,0.4542]
[1753496267150,2.82141633,3721.6,3721.3,0.4458]
[1753496267352,2.68701633,3721.6,3721.4,0.4542]
[1753496267879,0.1344,3721.5,3721.4,0.4542]
[1753496268098,2.833,3724.2,3721.5,0.7992]
[1753496268395,0.8276,3724.5,3723.1,0.7992]
[1753496268396,3.51288464,3724.0,3723.1,0.7992]
[1753496268546,3.51288464,3724.0,3722.8,2.467]
[1753496268547,2.75224228,3723.9,3722.8,2.467]
[1753496268736,2.6855731,3723.6,3722.7,4.2534]
[1753496269098,0.49357056,3723.5,3722.7,4.00301266]
[1753496269232,0.49357056,3723.5,3722.8,0.9]
[1753496269431,0.49357056,3723.5,3722.8,3.58608839]
[1753496269670,0.45934222,3723.4,3722.8,0.9]
[1753496269874,0.03357236,3723.3,3722.8,3.58614179]
[1753496270375,0.03357236,3723.3,3722.8,2.68614179]
[1753496270582,0.03357236,3723.3,3722.9,0.8977]
[1753496271088,0.03357236,3723.3,3723.0,0.4578]
[1753496271491,0.64422851,3723.3,3723.0,0.4578]
[1753496273053,0.61065615,3723.3,3723.1,0.4399]
[1753496273254,2.468,3723.4,3723.2,0.8977]
[1753496273561,2.467,3723.5,3723.3,0.8977]
[1753496273765,2.467,3723.5,3723.4,0.8977]
[1753496274556,2.467,3723.5,3723.4,3.58341735]
[1753496274756,2.467,3723.5,3723.4,0.8977]
[1753496275352,2.467,3723.5,3723.4,3.58341735]
[1753496275757,2.82298423,3723.8,3723.4,3.58341735]
[1753496275953,2.82298423,3723.8,3723.5,0.8977]
[1753496276185,2.82298423,3723.8,3723.6,0.8977]
[1753496276503,0.8131,3724.2,3723.7,0.8977]
[1753496276707,2.465,3724.2,3723.8,0.8977]
[1753496276873,2.465,3724.2,3723.7,2.68548221]
[1753496277215,2.68470798,3724.8,3724.0,0.7903]
[1753496277216,2.68473703,3724.8,3724.0,0.7903]
[1753496277501,2.68473703,3724.8,3724.1,0.4578]
[1753496277502,5.18337168,3724.7,3724.1,0.4578]
[1753496277671,0.56700717,3724.6,3724.1,0.4578]
[1753496277872,0.03356155,3724.5,3724.1,0.8977]
[1753496278073,0.03356155,3724.5,3724.2,0.8977]
[1753496278289,0.56700717,3724.6,3724.2,0.8977]
[1753496278459,0.1344,3724.3,3724.2,0.4399]
[1753496279063,0.1344,3724.3,3724.2,3.58284043]
[1753496279588,0.1344,3724.3,3724.2,0.8977]
[1753496280612,0.1344,3724.3,3724.2,3.58284043]
[1753496281360,2.47,3725.2,3724.3,0.7962]
[1753496281677,0.8309,3725.5,3724.7,2.68476994]
[1753496281678,2.47,3725.3,3724.7,2.68476994]
[1753496281882,0.1344,3724.8,3724.7,5.68476994]
[1753496282097,0.1344,3724.8,3724.7,6.48096994]
[1753496282394,0.1344,3725.1,3724.7,0.7962]
[1753496282624,0.1344,3725.1,3724.9,2.68461006]
[1753496282801,0.1344,3725.1,3725.0,2.68456375]
[1753496282986,0.1344,3725.1,3725.0,0.8977]
[1753496283370,0.1344,3725.1,3725.0,3.58226375]
[1753496283616,0.7485,3725.8,3725.2,2.68438586]
[1753496283896,3.56273606,3725.8,3725.3,4.6939]
[1753496284113,3.56273606,3725.8,3725.3,3.7962]
[1753496284261,3.56273606,3725.8,3725.4,0.8977]
[1753496284465,3.56273606,3725.8,3725.3,3.7962]
[1753496284466,0.1344,3725.4,3725.3,0.7962]
[1753496285168,0.1344,3725.4,3725.3,1.6939]
[1753496292881,0.1344,3725.4,3725.0,0.19759853]
[1753496293088,0.1344,3725.1,3724.7,0.81]
[1753496293328,0.1344,3725.1,3724.8,0.8977]
[1753496293686,0.1344,3725.1,3724.7,3.81]
[1753496293892,0.1344,3725.1,3724.9,0.8977]
[1753496295640,0.1344,3724.7,3724.5,0.8977]
[1753496295937,0.1344,3724.7,3724.4,5.467]
[1753496296140,0.8023,3725.4,3724.6,0.8977]
[1753496296337,2.65376361,3725.5,3724.7,3.8027]
[1753496296338,0.1344,3724.8,3724.7,3.8027]
[1753496296495,0.1344,3724.8,3724.7,4.7004]
[1753496298231,0.7485,3725.8,3724.7,7.18051053]
[1753496298396,0.1344,3725.3,3724.8,1.12542353]
[1753496298590,0.1344,3725.3,3724.9,0.01310548]
[1753496298805,0.1344,3725.3,3725.1,2.68443314]
[1753496299004,0.1344,3725.3,3725.2,0.8977]
[1753496299229,0.1344,3725.3,3725.2,3.58211962]
[1753496299902,0.7485,3725.8,3725.2,3.58211962]
[1753496300095,0.1344,3725.4,3725.3,1.7532]
[1753496300290,0.1344,3725.4,3725.3,4.43754756]
[1753496301329,0.1344,3725.4,3725.3,7.43754756]
[1753496301625,0.1344,3725.4,3725.3,4.7532]
[1753496301793,0.1344,3725.4,3725.3,7.43754756]
[1753496301992,0.1344,3725.4,3725.3,4.7532]
[1753496302191,0.7485,3725.8,3725.3,9.24366774]
[1753496302394,0.1344,3725.7,3725.3,8.29316774]
[1753496302594,0.1344,3725.7,3725.4,0.9505]
[1753496302995,0.1344,3725.7,3725.5,0.9505]
[1753496303431,0.1344,3725.7,3725.6,0.9505]
[1753496303928,0.1344,3725.7,3725.4,0.9505]
[1753496304126,0.8247,3725.7,3725.3,7.08272058]
[1753496304451,0.1344,3725.5,3725.3,7.08272058]
[1753496304728,0.1344,3725.5,3725.3,8.03322058]
[1753496304894,0.1344,3725.5,3725.4,0.9505]
[1753496305447,0.7485,3725.8,3725.4,4.70653008]
[1753496305646,0.1344,3725.7,3725.5,0.9505]
[1753496306504,0.7485,3725.8,3725.6,1.7124]
[1753496306699,0.8829,3725.8,3725.6,1.7124]
[1753496307047,0.8829,3725.8,3725.7,0.9505]
[1753496307824,0.8829,3725.8,3725.7,0.4922]
[1753496308648,0.8829,3725.8,3725.7,0.9505]
[1753496309301,0.8829,3725.8,3725.5,2.9582]
[1753496309504,0.8829,3725.8,3725.6,0.4922]
[1753496309699,0.7485,3725.8,3725.7,3.63455937]
[1753496310300,0.7485,3725.8,3725.7,6.63455937]
[1753496310501,0.7485,3725.8,3725.7,6.76895937]
[1753496311948,0.7485,3725.8,3725.7,13.31767995]
[1753496312843,0.7485,3725.8,3725.7,14.09917995]
[1753496313054,0.7485,3725.8,3725.7,16.874343]
[1753496313549,0.7485,3725.8,3725.7,13.858343]
[1753496313739,0.7485,3725.8,3725.7,16.324343]
[1753496313946,0.7485,3725.8,3725.7,20.94806779]
[1753496314237,0.1344,3726.8,3726.7,2.68333322]
[1753496314437,0.25117711,3727.3,3726.7,2.68333322]
[1753496314641,0.1344,3727.0,3726.8,0.4922]
[1753496314839,0.1344,3727.0,3726.9,0.9505]
[1753496315046,0.25108729,3727.6,3726.9,3.4175]
[1753496315204,1.05348729,3727.8,3727.0,3.4922]
[1753496315407,2.68297893,3727.3,3726.7,3.0]
[1753496315602,2.68298997,3727.2,3726.8,2.467]
[1753496315806,0.1344,3727.0,3726.8,2.67238868]
[1753496316050,0.1344,3727.0,3726.9,0.4922]
[1753496316221,0.1344,3727.0,3726.9,0.9505]
[1753496317449,0.1344,3727.0,3726.8,2.67238868]
[1753496317746,0.1344,3727.0,3726.8,4.00098093]
[1753496317946,0.1344,3727.0,3726.9,0.9505]
[1753496318147,0.1344,3727.0,3726.9,6.63369514]
[1753496318350,0.1344,3727.3,3727.0,2.68305631]
[1753496318643,0.1344,3727.6,3727.3,3.0]
[1753496318847,0.1344,3727.7,3727.4,6.09932561]
[1753496319049,0.1344,3727.7,3727.5,2.68274698]
[1753496319248,5.5351085,3728.2,3727.5,0.9505]
[1753496319450,6.43602208,3728.2,3727.5,0.4583]
[1753496319754,4.38562208,3728.2,3727.6,2.9592]
[1753496319933,0.8024,3728.2,3727.7,3.0]
[1753496320249,0.335,3728.5,3727.7,3.0]
[1753496320250,3.5102586,3728.5,3727.7,3.4583]
[1753496320449,0.8282,3728.5,3727.8,0.4922]
[1753496320608,0.8282,3728.5,3727.9,0.4583]
[1753496320813,3.13901565,3728.4,3727.8,0.4922]
[1753496321023,3.13901565,3728.4,3727.7,3.0]
[1753496321222,3.13901565,3728.4,3727.7,2.468]
[1753496321423,3.13901565,3728.4,3727.8,2.68253986]
[1753496321424,0.4569,3728.4,3727.8,2.68253986]
[1753496321652,3.13901792,3728.4,3727.7,5.6428008]
[1753496321838,4.08749036,3728.4,3727.7,5.6428008]
[1753496322039,4.08749036,3728.4,3727.7,5.9602]
[1753496322238,2.68220533,3728.3,3727.7,5.9602]
[1753496322580,1.40537244,3728.4,3727.7,5.9602]
[1753496322865,2.68219375,3728.3,3727.7,5.9602]
[1753496323080,2.68226888,3728.2,3727.7,5.9602]
[1753496323275,2.68226888,3728.2,3727.7,3.4922]
[1753496323573,3.13916888,3728.2,3727.7,5.9592]
[1753496323775,2.68246138,3728.0,3727.7,5.466]
[1753496323973,3.13936138,3728.0,3727.7,5.466]
[1753496324358,0.4569,3728.0,3727.7,5.466]
[1753496324556,0.4569,3727.9,3727.1,0.7975]
[1753496324725,0.4569,3727.9,3726.9,0.4583]
[1753496324726,1.6118,3727.9,3726.9,3.63363652]
[1753496324924,0.4569,3727.8,3727.0,5.9582]
[1753496325128,2.68268797,3727.7,3727.0,5.9582]
[1753496325470,0.4569,3727.8,3727.1,2.466]
[1753496325672,0.61808,3727.8,3727.0,0.4922]
[1753496325829,0.03353274,3727.7,3727.1,3.0]
[1753496326028,2.68269127,3727.6,3727.1,3.0]
[1753496326260,2.68291681,3727.3,3727.1,3.0]
[1753496326758,3.13987918,3727.2,3727.1,3.0]
[1753496327327,3.53635857,3727.3,3727.1,3.0]
[1753496327761,2.68319514,3726.9,3726.8,0.20538868]
[1753496327960,2.68319514,3726.9,3726.2,0.9505]
[1753496328261,2.68342865,3726.6,3726.2,3.4175]
[1753496328561,2.68342865,3726.6,3726.3,0.4922]
[1753496328933,2.68333914,3726.7,3726.3,3.0]
[1753496329131,0.4569,3727.2,3726.4,0.4583]
[1753496329361,0.1344,3726.5,3726.4,0.9505]
[1753496329830,2.68361507,3726.4,3726.2,0.7975]
[1753496330034,0.1344,3726.5,3726.1,2.467]
[1753496330238,1.30734443,3726.4,3726.0,0.19670414]
[1753496330435,0.8042,3726.7,3726.1,3.58701569]
[1753496330746,0.1344,3726.4,3726.1,2.68371569]
[1753496331132,0.1344,3726.4,3726.2,3.58697541]
[1753496331332,0.1344,3726.4,3726.3,0.9033]
[1753496331736,0.1344,3726.4,3726.0,2.9216]
[1753496331966,0.1344,3726.2,3726.0,0.1967444]
[1753496332269,0.1344,3726.2,3726.1,0.4536]
[1753496332674,0.1344,3726.2,3726.1,3.58707123]
[1753496332834,5.15029015,3726.8,3726.2,2.68369162]
[1753496332835,0.1344,3726.4,3726.2,2.68369162]
[1753496333035,0.1344,3726.4,3726.2,3.58699162]
[1753496333369,0.1344,3726.4,3726.3,0.9033]
[1753496334243,2.467,3726.8,3726.3,3.58686617]
[1753496334454,0.761,3727.3,3726.4,1.7112]
[1753496334661,0.1344,3726.9,3726.5,6.3713]
[1753496334849,0.1344,3726.9,3726.7,2.68328618]
[1753496335373,0.1344,3726.9,3726.8,0.9033]
[1753496335752,0.1344,3726.9,3726.4,3.8079]
[1753496335961,0.1344,3726.9,3726.5,2.468]
[1753496336269,0.1344,3726.6,3726.4,3.0]
[1753496336458,0.1344,3726.6,3726.3,2.468]
[1753496336459,0.1344,3726.6,3726.1,5.95962201]
[1753496336659,0.1344,3726.3,3726.1,6.40932201]
[1753496336978,0.1344,3726.3,3726.2,0.9033]
[1753496337343,0.1344,3726.3,3726.2,3.58699921]
[1753496337690,0.3454,3727.3,3726.4,2.68353189]
[1753496337882,0.1344,3726.6,3726.4,3.0]
[1753496338043,0.1344,3726.6,3726.5,0.9033]
[1753496338244,0.1344,3726.6,3726.5,3.58678316]
[1753496338678,2.68284442,3727.4,3726.7,2.6832733]
[1753496338978,0.1344,3726.8,3726.6,3.58670599]
[1753496339179,0.1344,3726.8,3726.7,0.9033]
[1753496339675,0.1344,3726.9,3726.7,3.58663914]
[1753496339874,0.1344,3726.9,3726.8,0.9033]
[1753496340074,5.56721486,3727.6,3726.8,1.6729]
[1753496340075,2.468,3727.6,3726.8,1.6729]
[1753496340276,2.468,3727.6,3726.9,0.4536]
[1753496340277,0.1344,3727.1,3726.9,0.4536]
[1753496340479,2.68296946,3727.3,3726.7,3.0]
[1753496340640,0.1344,3726.9,3726.4,0.1344]
[1753496340846,0.1344,3726.5,3726.4,3.0]
[1753496341172,0.1344,3726.5,3726.4,3.9033]
[1753496341355,3.48239973,3727.2,3726.4,3.9033]
[1753496341551,0.1344,3726.7,3726.5,0.9033]
[1753496341743,0.1344,3726.7,3726.5,0.4497]
[1753496341940,0.1344,3727.0,3726.6,1.6729]
[1753496342174,0.1344,3727.0,3726.9,2.68319514]
[1753496342573,0.7994,3727.7,3726.9,0.9033]
[1753496342775,0.1344,3727.2,3727.1,2.68305116]
[1753496343078,2.472,3727.7,3727.3,2.68290702]
[1753496343280,0.1344,3727.4,3727.3,2.68290702]
[1753496343583,0.1344,3727.4,3727.2,3.45257301]
[1753496343883,0.1344,3727.4,3727.3,2.68290719]
[1753496344051,0.1344,3727.4,3727.3,0.9033]
[1753496344376,0.1344,3727.4,3727.1,5.472]
[1753496344780,3.09921343,3727.6,3727.1,3.0]
[1753496345080,0.1344,3727.2,3727.1,3.0]
[1753496345583,0.5709,3727.2,3726.8,6.55372058]
[1753496345780,0.1344,3727.0,3726.8,4.08272058]
[1753496346552,0.1344,3727.0,3726.8,4.53632058]
[1753496346746,0.4365,3727.2,3726.8,4.08272058]
[1753496346986,0.1344,3726.9,3726.8,7.08272058]
[1753496347186,0.1344,3726.9,3726.8,3.4536]
[1753496347706,0.1344,3726.9,3726.8,3.0]
[1753496349164,0.1344,3726.9,3726.8,5.68326714]
[1753496349358,0.1344,3726.9,3726.8,6.13686714]
[1753496349768,0.1344,3726.9,3726.8,3.4536]
[1753496350701,0.1344,3726.9,3726.8,3.0]
[1753496353120,0.1344,3726.9,3726.8,3.4536]
[1753496353307,0.1344,3726.9,3726.8,6.13686714]
[1753496353684,0.1344,3726.9,3726.8,3.4536]
[1753496355542,0.1344,3726.9,3726.8,6.58656714]
[1753496355817,0.1344,3726.9,3726.8,3.9033]
[1753496357223,0.1344,3726.9,3726.8,3.4536]
[1753496358436,0.1344,3726.9,3726.8,6.58656714]
[1753496359236,0.1344,3726.9,3726.8,10.20027434]
[1753496359904,0.1344,3726.9,3726.8,7.5170072]
[1753496360098,0.1344,3726.9,3726.8,5.9206]
[1753496360851,0.1344,3726.9,3726.8,5.466]
[1753496361614,0.1344,3726.9,3726.8,3.0]
[1753496361810,0.1344,3726.9,3726.8,5.466]
[1753496362310,0.1344,3726.9,3726.8,2.466]
[1753496362522,0.1344,3726.9,3726.6,5.466]
[1753496362832,0.1344,3726.7,3726.6,3.0]
[1753496363221,0.3904,3727.3,3726.7,2.68328611]
[1753496363530,0.1344,3726.9,3726.8,2.68326714]
[1753496363730,0.1344,3726.9,3726.8,3.62576714]
[1753496364437,0.1344,3726.9,3726.8,0.9425]
[1753496365904,0.3904,3727.7,3726.8,1.7095]
[1753496366105,2.68286102,3727.4,3726.8,4.84972058]
[1753496366327,0.1344,3727.0,3726.8,6.76598592]
[1753496366727,0.1344,3727.0,3726.9,0.9425]
[1753496367037,0.1344,3727.0,3726.7,2.465]
[1753496367356,0.1344,3727.0,3726.8,3.15305581]
[1753496367552,0.1344,3727.0,3726.8,2.68325581]
[1753496367940,0.1344,3727.0,3726.9,3.62569514]
[1753496368940,0.1344,3727.0,3726.9,0.9425]
[1753496369742,0.1344,3727.0,3726.9,0.4698]
[1753496372475,0.1344,3727.0,3726.7,2.68332889]
[1753496372639,0.1344,3727.0,3726.8,2.465]
[1753496373069,0.1344,3727.0,3726.7,6.4065]